[Event "Titled Tuesday Blitz January 03 Early 2023"]
[White "Bobomurodova, Maftuna"]
[Black "Karttunen, Mika"]
[WhiteFideId "14207400"]
[BlackFideId "502081"]
[WhiteElo "1946"]
[BlackElo "2490"]
[Result "0-1"]
[Round "01"]
[TimeControl "180+2"]
[Date "2023.01.03"]
[WhiteClock "0:00:20"]
[BlackClock "0:00:21"]

1. e4 {[%clk 0:02:59]}  c5 {[%clk 0:02:59]} 2. Nf3 {[%clk 0:02:59]}  d6 {[%clk 0:03:00]} 3. d4 {[%clk 0:02:59]}  cxd4 {[%clk 0:03:00]} 4. Nxd4 {[%clk 0:03:00]}  Nf6 {[%clk 0:03:01]} 5. Nc3 {[%clk 0:02:59]}  a6 {[%clk 0:03:01]} 6. Bg5 {[%clk 0:02:57]}  e6 {[%clk 0:03:01]} 7. f4 {[%clk 0:02:55]}  Qb6 {[%clk 0:03:01]} 8. Qd2 {[%clk 0:02:54]}  Qxb2 {[%clk 0:03:00]} 9. Rb1 {[%clk 0:02:54]}  Qa3 {[%clk 0:03:00]} 10. f5 {[%clk 0:02:52]}  Nc6 {[%clk 0:02:54]} 11. fxe6 {[%clk 0:02:15]}  fxe6 {[%clk 0:02:52]} 12. Be2 {[%clk 0:01:57]}  Qc5 {[%clk 0:02:08]} 13. Be3 {[%clk 0:01:53]}  Nxd4 {[%clk 0:02:00]} 14. Bxd4 {[%clk 0:01:52]}  Qc6 {[%clk 0:02:00]} 15. Bf3 {[%clk 0:01:44]}  e5 {[%clk 0:01:56]} 16. Be3 {[%clk 0:01:40]}  Be7 {[%clk 0:01:48]} 17. O-O {[%clk 0:01:38]}  O-O {[%clk 0:01:48]} 18. Rb6 {[%clk 0:01:34]}  Qc7 {[%clk 0:01:31]} 19. Rfb1 {[%clk 0:01:25]}  Kh8 {[%clk 0:01:28]} 20. Nd5 {[%clk 0:01:23]}  Nxd5 {[%clk 0:01:28]} 21. exd5 {[%clk 0:01:23]}  Qc4 {[%clk 0:00:44]} 22. Be2 {[%clk 0:01:19]}  Qh4 {[%clk 0:00:40]} 23. R6b4 {[%clk 0:01:13]}  e4 {[%clk 0:00:36]} 24. g3 {[%clk 0:01:06]}  Qh3 {[%clk 0:00:31]} 25. Rxe4 {[%clk 0:01:06]}  Bf6 {[%clk 0:00:31]} 26. Bf1 {[%clk 0:01:04]}  Qf5 {[%clk 0:00:31]} 27. Rf4 {[%clk 0:01:03]}  Qg6 {[%clk 0:00:28]} 28. Bd3 {[%clk 0:01:02]}  Qh5 {[%clk 0:00:27]} 29. Rbf1 {[%clk 0:01:00]}  Bh3 {[%clk 0:00:27]} 30. R1f2 {[%clk 0:00:57]}  Rae8 {[%clk 0:00:27]} 31. Rh4 {[%clk 0:00:47]}  Bxh4 {[%clk 0:00:25]} 32. Bf4 {[%clk 0:00:22]}  Bf6 {[%clk 0:00:21]} 33. Kh1 {[%clk 0:00:20]}  Bd4 {[%clk 0:00:21]} 0-1


[Site "https://www.chess.com"]

[Event "Titled Tuesday Blitz January 03 Early 2023"]
[White "monkins"]
[Black "Papp, Levente"]
[BlackFideId "751243"]
[WhiteElo "2242"]
[BlackElo "2353"]
[Result "0-1"]
[Round "01"]
[TimeControl "180+2"]
[Date "2023.01.03"]
[WhiteClock "0:00:51"]
[BlackClock "0:00:55"]

1. Nf3 {[%clk 0:02:59]}  Nf6 {[%clk 0:02:49]} 2. c4 {[%clk 0:02:58]}  e6 {[%clk 0:02:48]} 3. g3 {[%clk 0:02:58]}  Be7 {[%clk 0:02:47]} 4. Bg2 {[%clk 0:02:59]}  O-O {[%clk 0:02:48]} 5. O-O {[%clk 0:02:59]}  d5 {[%clk 0:02:47]} 6. d3 {[%clk 0:02:59]}  Nc6 {[%clk 0:02:44]} 7. Nbd2 {[%clk 0:02:58]}  d4 {[%clk 0:02:42]} 8. a3 {[%clk 0:02:54]}  a5 {[%clk 0:02:42]} 9. Rb1 {[%clk 0:02:54]}  a4 {[%clk 0:02:39]} 10. b4 {[%clk 0:02:54]}  axb3 {[%clk 0:02:39]} 11. Qxb3 {[%clk 0:02:44]}  Bc5 {[%clk 0:02:31]} 12. a4 {[%clk 0:02:42]}  Qe7 {[%clk 0:02:28]} 13. Ra1 {[%clk 0:02:42]}  Bd7 {[%clk 0:02:23]} 14. Ba3 {[%clk 0:02:41]}  Ra7 {[%clk 0:01:48]} 15. Bxc5 {[%clk 0:02:29]}  Qxc5 {[%clk 0:01:49]} 16. Qb5 {[%clk 0:02:11]}  Qe7 {[%clk 0:01:49]} 17. Ne5 {[%clk 0:01:46]}  Nxe5 {[%clk 0:01:13]} 18. Qxe5 {[%clk 0:01:46]}  c5 {[%clk 0:01:14]} 19. Rfb1 {[%clk 0:01:34]}  Bc6 {[%clk 0:01:14]} 20. Bxc6 {[%clk 0:01:18]}  bxc6 {[%clk 0:01:15]} 21. Rb6 {[%clk 0:01:17]}  Nd7 {[%clk 0:01:14]} 22. Qe4 {[%clk 0:01:08]}  Nxb6 {[%clk 0:01:13]} 23. Qxc6 {[%clk 0:01:08]}  Qc7 {[%clk 0:01:11]} 24. Qb5 {[%clk 0:01:04]}  Rfa8 {[%clk 0:01:08]} 25. Ne4 {[%clk 0:01:00]}  Nd7 {[%clk 0:00:58]} 26. a5 {[%clk 0:00:51]}  Rxa5 {[%clk 0:00:55]} 0-1


[Site "https://www.chess.com"]

[Event "Titled Tuesday Blitz January 03 Early 2023"]
[White "De Souza, Cristiano Gomes"]
[Black "Swayams, Mishra"]
[WhiteFideId "2151758"]
[BlackFideId "5028183"]
[WhiteElo "2018"]
[BlackElo "2489"]
[Result "0-1"]
[Round "01"]
[TimeControl "180+2"]
[Date "2023.01.03"]
[WhiteClock "0:01:09"]
[BlackClock "0:00:21"]

1. d4 {[%clk 0:02:59]}  e6 {[%clk 0:02:54]} 2. c4 {[%clk 0:02:59]}  b6 {[%clk 0:02:53]} 3. a3 {[%clk 0:02:58]}  Bb7 {[%clk 0:02:53]} 4. Nc3 {[%clk 0:02:58]}  f5 {[%clk 0:02:54]} 5. Nf3 {[%clk 0:02:58]}  Nf6 {[%clk 0:02:53]} 6. g3 {[%clk 0:02:58]}  Ne4 {[%clk 0:02:53]} 7. Qc2 {[%clk 0:02:58]}  Nxc3 {[%clk 0:02:52]} 8. Qxc3 {[%clk 0:02:58]}  Be7 {[%clk 0:02:51]} 9. Bg2 {[%clk 0:02:58]}  Bf6 {[%clk 0:02:52]} 10. O-O {[%clk 0:02:58]}  O-O {[%clk 0:02:52]} 11. Rd1 {[%clk 0:02:58]}  d6 {[%clk 0:02:53]} 12. b4 {[%clk 0:02:58]}  a5 {[%clk 0:02:47]} 13. Bb2 {[%clk 0:02:58]}  axb4 {[%clk 0:02:48]} 14. axb4 {[%clk 0:02:58]}  Nd7 {[%clk 0:02:47]} 15. Ne1 {[%clk 0:02:53]}  Bxg2 {[%clk 0:02:44]} 16. Nxg2 {[%clk 0:02:53]}  Rxa1 {[%clk 0:02:41]} 17. Bxa1 {[%clk 0:02:53]}  c5 {[%clk 0:02:42]} 18. bxc5 {[%clk 0:02:53]}  bxc5 {[%clk 0:02:40]} 19. e3 {[%clk 0:02:51]}  Qe7 {[%clk 0:02:22]} 20. Nf4 {[%clk 0:02:49]}  g5 {[%clk 0:02:18]} 21. Ne2 {[%clk 0:02:46]}  Rc8 {[%clk 0:02:15]} 22. Qd3 {[%clk 0:02:38]}  cxd4 {[%clk 0:02:14]} 23. exd4 {[%clk 0:02:34]}  Nb6 {[%clk 0:02:09]} 24. Rc1 {[%clk 0:02:29]}  Kg7 {[%clk 0:01:36]} 25. Qb3 {[%clk 0:02:03]}  Qa7 {[%clk 0:01:22]} 26. Bb2 {[%clk 0:01:57]}  Qa6 {[%clk 0:01:08]} 27. h4 {[%clk 0:01:50]}  gxh4 {[%clk 0:00:48]} 28. Nf4 {[%clk 0:01:50]}  Rxc4 {[%clk 0:00:42]} 29. Nh5+ {[%clk 0:01:48]}  Kg6 {[%clk 0:00:41]} 30. Nxf6 {[%clk 0:01:49]}  Rxc1+ {[%clk 0:00:39]} 31. Bxc1 {[%clk 0:01:43]}  Kxf6 {[%clk 0:00:40]} 32. Qe3 {[%clk 0:01:39]}  Ke7 {[%clk 0:00:30]} 33. Qg5+ {[%clk 0:01:38]}  Kd7 {[%clk 0:00:30]} 34. Qg7+ {[%clk 0:01:37]}  Kc6 {[%clk 0:00:30]} 35. Bf4 {[%clk 0:01:34]}  Nd5 {[%clk 0:00:27]} 36. Qxh7 {[%clk 0:01:23]}  Nxf4 {[%clk 0:00:25]} 37. gxf4 {[%clk 0:01:24]}  Qa1+ {[%clk 0:00:26]} 38. Kh2 {[%clk 0:01:24]}  Qxd4 {[%clk 0:00:25]} 39. Qxh4 {[%clk 0:01:24]}  Kd5 {[%clk 0:00:25]} 40. Qg3 {[%clk 0:01:18]}  Ke4 {[%clk 0:00:21]} 41. f3+ {[%clk 0:01:13]}  Kd5 {[%clk 0:00:19]} 42. Kg2 {[%clk 0:01:11]}  Qd2+ {[%clk 0:00:19]} 43. Kh3 {[%clk 0:01:10]}  Qd1 {[%clk 0:00:18]} 44. Kg2 {[%clk 0:01:10]}  Qe2+ {[%clk 0:00:18]} 45. Kh3 {[%clk 0:01:10]}  Kd4 {[%clk 0:00:18]} 46. Qg1+ {[%clk 0:01:10]}  Kd3 {[%clk 0:00:18]} 47. Kg3 {[%clk 0:01:09]}  Kd2 {[%clk 0:00:15]} 48. Qa1 {[%clk 0:01:07]}  Qe1+ {[%clk 0:00:15]} 49. Qxe1+ {[%clk 0:01:06]}  Kxe1 {[%clk 0:00:16]} 50. Kh4 {[%clk 0:01:06]}  Kf2 {[%clk 0:00:17]} 51. Kg5 {[%clk 0:01:07]}  Kxf3 {[%clk 0:00:18]} 52. Kf6 {[%clk 0:01:08]}  d5 {[%clk 0:00:16]} 53. Kxe6 {[%clk 0:01:09]}  Ke4 {[%clk 0:00:17]} 54. Kd6 {[%clk 0:01:08]}  d4 {[%clk 0:00:18]} 55. Kc5 {[%clk 0:01:09]}  d3 {[%clk 0:00:19]} 56. Kc4 {[%clk 0:01:09]}  d2 {[%clk 0:00:20]} 57. Kc3 {[%clk 0:01:09]}  d1=Q {[%clk 0:00:21]} 0-1


[Site "https://www.chess.com"]

[Event "Titled Tuesday Blitz January 03 Early 2023"]
[White "Levitskiy, Andrey"]
[Black "Lesbekova, Assel"]
[WhiteFideId "14132885"]
[BlackFideId "13713248"]
[WhiteElo "2304"]
[BlackElo "1772"]
[Result "1-0"]
[Round "01"]
[TimeControl "180+2"]
[Date "2023.01.03"]
[WhiteClock "0:00:43"]
[BlackClock "0:01:19"]

1. e4 {[%clk 0:03:00]}  c5 {[%clk 0:02:58]} 2. Nf3 {[%clk 0:03:00]}  Nc6 {[%clk 0:02:57]} 3. d4 {[%clk 0:02:59]}  cxd4 {[%clk 0:02:58]} 4. Nxd4 {[%clk 0:03:00]}  e5 {[%clk 0:02:52]} 5. Nb5 {[%clk 0:02:59]}  d6 {[%clk 0:02:51]} 6. N1c3 {[%clk 0:03:00]}  a6 {[%clk 0:02:51]} 7. Na3 {[%clk 0:03:00]}  b5 {[%clk 0:02:51]} 8. Nd5 {[%clk 0:03:01]}  Nce7 {[%clk 0:02:51]} 9. Bd3 {[%clk 0:02:58]}  Nxd5 {[%clk 0:02:51]} 10. exd5 {[%clk 0:02:59]}  f5 {[%clk 0:02:51]} 11. O-O {[%clk 0:02:57]}  Nf6 {[%clk 0:02:50]} 12. c4 {[%clk 0:02:57]}  bxc4 {[%clk 0:02:49]} 13. Nxc4 {[%clk 0:02:45]}  Be7 {[%clk 0:02:47]} 14. Bd2 {[%clk 0:02:39]}  O-O {[%clk 0:02:45]} 15. Ba5 {[%clk 0:02:39]}  Qe8 {[%clk 0:02:45]} 16. Qb3 {[%clk 0:02:01]}  e4 {[%clk 0:02:36]} 17. Be2 {[%clk 0:01:54]}  f4 {[%clk 0:02:36]} 18. Rfe1 {[%clk 0:01:40]}  f3 {[%clk 0:02:18]} 19. gxf3 {[%clk 0:01:28]}  Qg6+ {[%clk 0:02:16]} 20. Kh1 {[%clk 0:01:28]}  Bh3 {[%clk 0:02:07]} 21. Bf1 {[%clk 0:01:29]}  Bxf1 {[%clk 0:02:01]} 22. Rxf1 {[%clk 0:01:30]}  exf3 {[%clk 0:02:00]} 23. Rg1 {[%clk 0:01:26]}  Qh5 {[%clk 0:01:55]} 24. Ne3 {[%clk 0:01:18]}  Ne4 {[%clk 0:01:53]} 25. Qc2 {[%clk 0:01:15]}  Qh4 {[%clk 0:01:49]} 26. Raf1 {[%clk 0:01:07]}  Rf6 {[%clk 0:01:47]} 27. Rg4 {[%clk 0:01:04]}  Nxf2+ {[%clk 0:01:32]} 28. Qxf2 {[%clk 0:00:55]}  Qh3 {[%clk 0:01:28]} 29. Qg3 {[%clk 0:00:48]}  Qh6 {[%clk 0:01:26]} 30. Bc3 {[%clk 0:00:43]}  Rg6 {[%clk 0:01:19]} 31. Nf5 {[%clk 0:00:43]} 1-0


[Site "https://www.chess.com"]

[Event "Titled Tuesday Blitz January 03 Early 2023"]
[White "Barbot, Pierre"]
[Black "Aldokhin, Ivan"]
[WhiteFideId "663727"]
[BlackFideId "24115720"]
[WhiteElo "2458"]
[BlackElo "2413"]
[Result "0-1"]
[Round "01"]
[TimeControl "180+2"]
[Date "2023.01.03"]
[WhiteClock "0:00:03"]
[BlackClock "0:01:14"]

1. e4 {[%clk 0:02:59]}  c5 {[%clk 0:03:00]} 2. Nf3 {[%clk 0:02:58]}  e6 {[%clk 0:03:00]} 3. d4 {[%clk 0:02:57]}  cxd4 {[%clk 0:03:01]} 4. Nxd4 {[%clk 0:02:58]}  a6 {[%clk 0:03:01]} 5. Nc3 {[%clk 0:02:44]}  Qc7 {[%clk 0:03:02]} 6. Be3 {[%clk 0:02:33]}  Nf6 {[%clk 0:03:02]} 7. f3 {[%clk 0:01:57]}  b5 {[%clk 0:03:01]} 8. Be2 {[%clk 0:01:56]}  b4 {[%clk 0:02:58]} 9. Nb1 {[%clk 0:01:45]}  d5 {[%clk 0:02:58]} 10. Nd2 {[%clk 0:01:43]}  Bb7 {[%clk 0:02:57]} 11. exd5 {[%clk 0:01:42]}  Nxd5 {[%clk 0:02:56]} 12. Bf2 {[%clk 0:01:42]}  Bd6 {[%clk 0:02:53]} 13. Ne4 {[%clk 0:01:36]}  Bf4 {[%clk 0:02:37]} 14. Qd3 {[%clk 0:01:21]}  Nd7 {[%clk 0:02:35]} 15. g3 {[%clk 0:01:16]}  Bh6 {[%clk 0:02:20]} 16. O-O {[%clk 0:01:04]}  O-O {[%clk 0:02:19]} 17. f4 {[%clk 0:00:57]}  g6 {[%clk 0:01:40]} 18. Bf3 {[%clk 0:00:48]}  Bg7 {[%clk 0:01:39]} 19. Bg2 {[%clk 0:00:34]}  e5 {[%clk 0:01:37]} 20. fxe5 {[%clk 0:00:22]}  Nxe5 {[%clk 0:01:37]} 21. Qb3 {[%clk 0:00:21]}  Ng4 {[%clk 0:01:34]} 22. Ne2 {[%clk 0:00:12]}  Nxf2 {[%clk 0:01:31]} 23. Rxf2 {[%clk 0:00:13]}  a5 {[%clk 0:01:26]} 24. Raf1 {[%clk 0:00:11]}  a4 {[%clk 0:01:26]} 25. Qd3 {[%clk 0:00:10]}  Rad8 {[%clk 0:01:24]} 26. Qb5 {[%clk 0:00:09]}  Ne3 {[%clk 0:01:15]} 27. Re1 {[%clk 0:00:03]}  Nxg2 {[%clk 0:01:14]} 0-1


[Site "https://www.chess.com"]

[Event "Titled Tuesday Blitz January 03 Early 2023"]
[White "Maksimenko, Viktor"]
[Black "MIM06"]
[WhiteFideId "13710478"]
[WhiteElo "2196"]
[BlackElo "2273"]
[Result "1-0"]
[Round "01"]
[TimeControl "180+2"]
[Date "2023.01.03"]
[WhiteClock "0:02:49"]
[BlackClock "0:02:27"]

1. d4 {[%clk 0:02:59]}  Nf6 {[%clk 0:02:57]} 2. Nf3 {[%clk 0:02:59]}  g6 {[%clk 0:02:57]} 3. c4 {[%clk 0:02:59]}  Bg7 {[%clk 0:02:57]} 4. Nc3 {[%clk 0:02:59]}  d5 {[%clk 0:02:57]} 5. cxd5 {[%clk 0:03:00]}  Nxd5 {[%clk 0:02:57]} 6. e4 {[%clk 0:03:01]}  Nxc3 {[%clk 0:02:58]} 7. bxc3 {[%clk 0:03:02]}  c5 {[%clk 0:02:59]} 8. Bb5+ {[%clk 0:03:02]}  Bd7 {[%clk 0:02:57]} 9. Be2 {[%clk 0:03:00]}  O-O {[%clk 0:02:56]} 10. O-O {[%clk 0:02:59]}  Nc6 {[%clk 0:02:50]} 11. Be3 {[%clk 0:02:59]}  Bg4 {[%clk 0:02:49]} 12. d5 {[%clk 0:02:56]}  Bxf3 {[%clk 0:02:44]} 13. Bxf3 {[%clk 0:02:56]}  Ne5 {[%clk 0:02:44]} 14. Be2 {[%clk 0:02:56]}  Rc8 {[%clk 0:02:42]} 15. f4 {[%clk 0:02:54]}  Nd7 {[%clk 0:02:42]} 16. Rb1 {[%clk 0:02:54]}  b6 {[%clk 0:02:41]} 17. c4 {[%clk 0:02:53]}  Nf6 {[%clk 0:02:37]} 18. Bf3 {[%clk 0:02:51]}  Qd7 {[%clk 0:02:35]} 19. e5 {[%clk 0:02:50]}  Ne8 {[%clk 0:02:32]} 20. Bg4 {[%clk 0:02:50]}  e6 {[%clk 0:02:33]} 21. dxe6 {[%clk 0:02:50]}  Qxd1 {[%clk 0:02:32]} 22. exf7+ {[%clk 0:02:50]}  Rxf7 {[%clk 0:02:31]} 23. Rbxd1 {[%clk 0:02:51]}  Rc6 {[%clk 0:02:29]} 24. Bd7 {[%clk 0:02:50]}  Rc7 {[%clk 0:02:27]} 25. Bxe8 {[%clk 0:02:49]} 1-0


[Site "https://www.chess.com"]

[Event "Titled Tuesday Blitz January 03 Early 2023"]
[White "Bommini, Mounika Akshaya"]
[Black "Cnejev, Vladimir-Alexandru"]
[WhiteFideId "25019872"]
[BlackFideId "1260898"]
[WhiteElo "2118"]
[BlackElo "2374"]
[Result "0-1"]
[Round "01"]
[TimeControl "180+2"]
[Date "2023.01.03"]
[WhiteClock "0:00:08"]
[BlackClock "0:00:07"]

1. d4 {[%clk 0:02:58]}  d5 {[%clk 0:02:59]} 2. Bf4 {[%clk 0:02:57]}  Nf6 {[%clk 0:02:59]} 3. e3 {[%clk 0:02:57]}  e6 {[%clk 0:02:59]} 4. Nd2 {[%clk 0:02:54]}  c5 {[%clk 0:03:00]} 5. c3 {[%clk 0:02:53]}  Bd6 {[%clk 0:03:00]} 6. Bg3 {[%clk 0:02:52]}  Qc7 {[%clk 0:02:59]} 7. Ngf3 {[%clk 0:02:51]}  Nbd7 {[%clk 0:02:58]} 8. Bd3 {[%clk 0:02:39]}  O-O {[%clk 0:02:55]} 9. O-O {[%clk 0:02:25]}  Bxg3 {[%clk 0:02:54]} 10. hxg3 {[%clk 0:02:25]}  e5 {[%clk 0:02:55]} 11. dxe5 {[%clk 0:02:22]}  Nxe5 {[%clk 0:02:56]} 12. Nxe5 {[%clk 0:02:21]}  Qxe5 {[%clk 0:02:57]} 13. Nf3 {[%clk 0:02:20]}  Qh5 {[%clk 0:02:29]} 14. c4 {[%clk 0:02:19]}  Be6 {[%clk 0:02:07]} 15. Qe2 {[%clk 0:02:01]}  Rfe8 {[%clk 0:01:55]} 16. Rfd1 {[%clk 0:01:23]}  d4 {[%clk 0:01:45]} 17. exd4 {[%clk 0:01:15]}  Bg4 {[%clk 0:01:39]} 18. Qf1 {[%clk 0:01:13]}  cxd4 {[%clk 0:01:02]} 19. Be2 {[%clk 0:01:07]}  Rad8 {[%clk 0:00:56]} 20. Rd3 {[%clk 0:00:52]}  Bf5 {[%clk 0:00:33]} 21. Rxd4 {[%clk 0:00:36]}  Ng4 {[%clk 0:00:28]} 22. Rad1 {[%clk 0:00:27]}  Rxd4 {[%clk 0:00:21]} 23. Rxd4 {[%clk 0:00:28]}  g5 {[%clk 0:00:21]} 24. Bd3 {[%clk 0:00:21]}  Bxd3 {[%clk 0:00:14]} 25. Rxd3 {[%clk 0:00:18]}  Re6 {[%clk 0:00:12]} 26. Qd1 {[%clk 0:00:18]}  Rh6 {[%clk 0:00:07]} 27. Rd8+ {[%clk 0:00:18]}  Kg7 {[%clk 0:00:07]} 28. Qd4+ {[%clk 0:00:19]}  Nf6 {[%clk 0:00:05]} 29. Nh4 {[%clk 0:00:16]}  gxh4 {[%clk 0:00:04]} 30. Rd5 {[%clk 0:00:15]}  Qg6 {[%clk 0:00:04]} 31. gxh4 {[%clk 0:00:14]}  Rh5 {[%clk 0:00:04]} 32. Rd6 {[%clk 0:00:08]}  Rf5 {[%clk 0:00:05]} 33. g4 {[%clk 0:00:07]}  Qxg4+ {[%clk 0:00:04]} 34. Qxg4+ {[%clk 0:00:07]}  Nxg4 {[%clk 0:00:05]} 35. Rd5 {[%clk 0:00:07]}  Rxd5 {[%clk 0:00:05]} 36. cxd5 {[%clk 0:00:07]}  Kf6 {[%clk 0:00:06]} 37. Kg2 {[%clk 0:00:07]}  Ke5 {[%clk 0:00:06]} 38. Kg3 {[%clk 0:00:07]}  Nf6 {[%clk 0:00:06]} 39. d6 {[%clk 0:00:07]}  Kxd6 {[%clk 0:00:06]} 40. Kf4 {[%clk 0:00:07]}  Ke6 {[%clk 0:00:06]} 41. Kg5 {[%clk 0:00:07]}  Ne4+ {[%clk 0:00:05]} 42. Kh6 {[%clk 0:00:07]}  Nxf2 {[%clk 0:00:06]} 43. Kxh7 {[%clk 0:00:08]}  f5 {[%clk 0:00:06]} 44. h5 {[%clk 0:00:08]}  f4 {[%clk 0:00:07]} 45. Kg7 {[%clk 0:00:08]}  Ng4 {[%clk 0:00:07]} 0-1


[Site "https://www.chess.com"]

[Event "Titled Tuesday Blitz January 03 Early 2023"]
[White "Christie, Joshua"]
[Black "Kuchava, Ana"]
[WhiteFideId "7402074"]
[BlackFideId "13605348"]
[WhiteElo "2294"]
[BlackElo "2101"]
[Result "1-0"]
[Round "01"]
[TimeControl "180+2"]
[Date "2023.01.03"]
[WhiteClock "0:00:11"]
[BlackClock "0:00:06"]

1. Nf3 {[%clk 0:02:58]}  d5 {[%clk 0:02:59]} 2. b3 {[%clk 0:02:57]}  c5 {[%clk 0:02:58]} 3. Bb2 {[%clk 0:02:55]}  Nc6 {[%clk 0:02:55]} 4. e3 {[%clk 0:02:55]}  Nf6 {[%clk 0:02:50]} 5. Bb5 {[%clk 0:02:52]}  Bd7 {[%clk 0:02:48]} 6. O-O {[%clk 0:02:51]}  a6 {[%clk 0:02:48]} 7. Bxc6 {[%clk 0:02:50]}  Bxc6 {[%clk 0:02:49]} 8. Ne5 {[%clk 0:02:51]}  Qc7 {[%clk 0:02:41]} 9. d3 {[%clk 0:02:49]}  e6 {[%clk 0:02:40]} 10. Nd2 {[%clk 0:02:48]}  Bd6 {[%clk 0:02:37]} 11. f4 {[%clk 0:02:48]}  O-O {[%clk 0:02:36]} 12. Qe1 {[%clk 0:02:40]}  b5 {[%clk 0:02:35]} 13. Qg3 {[%clk 0:02:28]}  Bb7 {[%clk 0:02:20]} 14. Ndf3 {[%clk 0:02:09]}  c4 {[%clk 0:02:18]} 15. Nxc4 {[%clk 0:01:51]}  Be7 {[%clk 0:02:10]} 16. Be5 {[%clk 0:01:25]}  Qc5 {[%clk 0:01:26]} 17. Bxf6 {[%clk 0:01:15]}  Bxf6 {[%clk 0:01:25]} 18. Nce5 {[%clk 0:01:15]}  Rad8 {[%clk 0:01:18]} 19. Qf2 {[%clk 0:01:04]}  Be7 {[%clk 0:00:54]} 20. Rac1 {[%clk 0:00:34]}  f6 {[%clk 0:00:46]} 21. d4 {[%clk 0:00:35]}  Qa3 {[%clk 0:00:43]} 22. Nd3 {[%clk 0:00:35]}  Rc8 {[%clk 0:00:40]} 23. c3 {[%clk 0:00:33]}  b4 {[%clk 0:00:36]} 24. c4 {[%clk 0:00:21]}  dxc4 {[%clk 0:00:29]} 25. Nc5 {[%clk 0:00:13]}  Bxc5 {[%clk 0:00:28]} 26. dxc5 {[%clk 0:00:14]}  c3 {[%clk 0:00:27]} 27. Nd4 {[%clk 0:00:13]}  Kf7 {[%clk 0:00:24]} 28. f5 {[%clk 0:00:13]}  e5 {[%clk 0:00:23]} 29. Ne6 {[%clk 0:00:14]}  Rfe8 {[%clk 0:00:24]} 30. Qg3 {[%clk 0:00:14]}  Rg8 {[%clk 0:00:23]} 31. Qh3 {[%clk 0:00:14]}  Bd5 {[%clk 0:00:20]} 32. Qh5+ {[%clk 0:00:13]}  Ke7 {[%clk 0:00:21]} 33. Qxh7 {[%clk 0:00:12]}  Bxe6 {[%clk 0:00:20]} 34. fxe6 {[%clk 0:00:12]}  Rxc5 {[%clk 0:00:19]} 35. Qg6 {[%clk 0:00:13]}  Kxe6 {[%clk 0:00:18]} 36. Rcd1 {[%clk 0:00:11]}  Qa5 {[%clk 0:00:15]} 37. Qg4+ {[%clk 0:00:11]}  Ke7 {[%clk 0:00:06]} 38. Rd7+ {[%clk 0:00:12]}  Kf8 {[%clk 0:00:06]} 39. Qe6 {[%clk 0:00:11]} 1-0


[Site "https://www.chess.com"]

[Event "Titled Tuesday Blitz January 03 Early 2023"]
[White "Ciuffoletti, Paolo"]
[Black "Tologon tegin, Semetei"]
[WhiteFideId "807630"]
[BlackFideId "13800574"]
[WhiteElo "2106"]
[BlackElo "2372"]
[Result "1-0"]
[Round "01"]
[TimeControl "180+2"]
[Date "2023.01.03"]
[WhiteClock "0:00:13"]
[BlackClock "0:00:21"]

1. e4 {[%clk 0:02:58]}  e5 {[%clk 0:02:59]} 2. Nf3 {[%clk 0:02:57]}  Nc6 {[%clk 0:02:59]} 3. Bc4 {[%clk 0:02:57]}  Bc5 {[%clk 0:02:58]} 4. b4 {[%clk 0:02:56]}  Bb6 {[%clk 0:02:57]} 5. a4 {[%clk 0:02:55]}  a6 {[%clk 0:02:52]} 6. Nc3 {[%clk 0:02:54]}  d6 {[%clk 0:02:52]} 7. Nd5 {[%clk 0:02:53]}  Ba7 {[%clk 0:02:52]} 8. d3 {[%clk 0:02:50]}  h6 {[%clk 0:02:51]} 9. h3 {[%clk 0:02:47]}  Nf6 {[%clk 0:02:51]} 10. c3 {[%clk 0:02:41]}  O-O {[%clk 0:02:48]} 11. O-O {[%clk 0:02:40]}  Nxd5 {[%clk 0:02:48]} 12. exd5 {[%clk 0:02:33]}  Ne7 {[%clk 0:02:47]} 13. d4 {[%clk 0:02:21]}  exd4 {[%clk 0:02:41]} 14. Nxd4 {[%clk 0:02:19]}  Ng6 {[%clk 0:02:40]} 15. Be3 {[%clk 0:02:09]}  Qf6 {[%clk 0:02:40]} 16. Qf3 {[%clk 0:02:00]}  Qxf3 {[%clk 0:02:34]} 17. Nxf3 {[%clk 0:01:54]}  Bxe3 {[%clk 0:02:33]} 18. fxe3 {[%clk 0:01:54]}  Re8 {[%clk 0:02:31]} 19. Rae1 {[%clk 0:01:49]}  Bf5 {[%clk 0:02:27]} 20. Nd2 {[%clk 0:01:24]}  Re5 {[%clk 0:02:20]} 21. Rf2 {[%clk 0:01:06]}  Rae8 {[%clk 0:02:16]} 22. Rfe2 {[%clk 0:01:04]}  R5e7 {[%clk 0:01:55]} 23. e4 {[%clk 0:00:59]}  Bd7 {[%clk 0:01:55]} 24. a5 {[%clk 0:00:47]}  Ne5 {[%clk 0:01:48]} 25. Bb3 {[%clk 0:00:45]}  Nd3 {[%clk 0:01:45]} 26. Rf1 {[%clk 0:00:43]}  f5 {[%clk 0:01:45]} 27. Bc2 {[%clk 0:00:36]}  fxe4 {[%clk 0:01:44]} 28. Nxe4 {[%clk 0:00:35]}  Rxe4 {[%clk 0:01:43]} 29. Rxe4 {[%clk 0:00:35]}  Rxe4 {[%clk 0:01:43]} 30. Bxd3 {[%clk 0:00:35]}  Re3 {[%clk 0:01:38]} 31. Rf3 {[%clk 0:00:31]}  Rxf3 {[%clk 0:01:37]} 32. gxf3 {[%clk 0:00:31]}  Bxh3 {[%clk 0:01:38]} 33. c4 {[%clk 0:00:24]}  g5 {[%clk 0:01:31]} 34. c5 {[%clk 0:00:24]}  dxc5 {[%clk 0:01:19]} 35. bxc5 {[%clk 0:00:22]}  Kf7 {[%clk 0:01:19]} 36. c6 {[%clk 0:00:20]}  Bc8 {[%clk 0:01:18]} 37. Bf5 {[%clk 0:00:15]}  bxc6 {[%clk 0:01:12]} 38. Bxc8 {[%clk 0:00:15]}  cxd5 {[%clk 0:00:53]} 39. Bxa6 {[%clk 0:00:15]}  Ke7 {[%clk 0:00:50]} 40. Bb7 {[%clk 0:00:14]}  d4 {[%clk 0:00:28]} 41. a6 {[%clk 0:00:13]}  d3 {[%clk 0:00:29]} 42. Kf2 {[%clk 0:00:13]}  d2 {[%clk 0:00:29]} 43. Ke2 {[%clk 0:00:13]}  h5 {[%clk 0:00:25]} 44. a7 {[%clk 0:00:13]}  h4 {[%clk 0:00:26]} 45. a8=Q {[%clk 0:00:13]}  h3 {[%clk 0:00:24]} 46. Qc8 {[%clk 0:00:13]}  h2 {[%clk 0:00:23]} 47. Qxc7+ {[%clk 0:00:13]}  Kf6 {[%clk 0:00:23]} 48. Qxh2 {[%clk 0:00:14]}  d1=Q+ {[%clk 0:00:21]} 49. Kxd1 {[%clk 0:00:13]} 1-0


[Site "https://www.chess.com"]